Cogmind - Beta 15 @@@ ROGUE MODE // 2025.05.18 @ 19:35:58 Player: Cruelcumber Result: Self-destructed Performance ------------- Evolutions (3) 1500 Regions Visited (6) 1200 Robots Destroyed (39) 195 Value Destroyed (1011) 1011 Prototype IDs (3) 60 Alien Tech Used (0) 0 Bonus (146) 146 TOTAL SCORE: 4112 Bonus ------- Follower Combat Kills 146 Cogmind --------- Core Integrity 168/700 Matter 300/300 Energy 100/100 System Corruption 8% Temperature Cool (9) Movement Core (200) Ox3 Location -7/Factory Parts ------- > --- POWER (1) -------- (None) > --- PROPULSION (4) --- (None) > --- UTILITY (4) ------ Medium Storage Unit Visual Processing Unit Hacking Suite > --- WEAPON (4) ------- (None) > --- INVENTORY (10) --- Improved Deuterium Engine Improved Carbon-fiber Leg Improved Heat Sink High-capacity Battery (250) Medium Matter Pod (100) Field Laser Flak Gun Heavy Rocket Launcher Remote Datajack Peak State ------------ > --- POWER ------------ Improved Deuterium Engine > --- PROPULSION ------- Xenon Bombardment Thruster Xenon Bombardment Thruster Xenon Bombardment Thruster Xenon Bombardment Thruster > --- UTILITY ---------- Medium Storage Unit Visual Processing Unit Hacking Suite System Shield > --- WEAPON ----------- Gauss Rifle > --- INVENTORY -------- Improved Deuterium Engine Improved Carbon-fiber Leg Cesium-ion Thruster Improved Heat Sink High-capacity Battery Medium Matter Pod Field Laser Flak Gun Heavy Rocket Launcher Remote Datajack [Rating: 36] Favorites ----------- Power Light Ion Engine Engine Light Ion Engine Propulsion Improved Treads Treads Improved Treads Leg Aluminum Leg Flight Unit Xenon Bombardment Thruster Utility Medium Storage Unit Device Heat Sink Storage Medium Storage Unit Processor Visual Processing Unit Hackware Hacking Suite Protection Hardened Medium Armor Plating Weapon Light Cannon Energy Gun Small Laser Energy Cannon Particle Cannon Ballistic Gun Heavy Assault Rifle Ballistic Cannon Light Cannon Launcher Grenade Launcher Special Weapon Remote Datajack Special Melee Weapon Datajack Build | -11 -10 -10 -9 -9 -8 -7 ------- Run | Yrd Mat Min Mat Sto Mat Fac Slots Evolved 6 | . . . 2 . 2 2 Power . | . . . . . . . Propulsion 2 | . . . 2 . . . Utility 2 | . . . . . 2 . Weapon 2 | . . . . . . 2 Parts Attached 46 | 6 5 4 5 2 9 15 Power 6 | 1 . 1 2 . 1 1 Engine 6 | 1 . 1 2 . 1 1 Core . | . . . . . . . Reactor . | . . . . . . . Propulsion 14 | 2 2 . 2 . 2 6 Treads 7 | . 2 . 2 . 2 1 Leg 2 | 2 . . . . . . Wheel . | . . . . . . . Hover . | . . . . . . . Flight 5 | . . . . . . 5 Utility 13 | 1 2 1 . 1 4 4 Device 3 | 1 . 1 . . 1 . Storage 2 | . 2 . . . . . Processor 1 | . . . . . . 1 Hackware 3 | . . . . . . 3 Protection 4 | . . . . 1 3 . Artifact . | . . . . . . . Weapon 13 | 2 1 2 1 1 2 4 Energy Gun 6 | 2 . 1 . . 1 2 Energy Cannon 1 | . . . . 1 . . Ballistic Gun 2 | . . . . . 1 1 Ballistic Cannon 1 | . . . 1 . . . Launcher 1 | . . 1 . . . . Special Weapon 1 | . . . . . . 1 Impact Weapon . | . . . . . . . Slashing Weapon . | . . . . . . . Piercing Weapon . | . . . . . . . Special Melee Weapon 1 | . 1 . . . . . Unidentified Prototypes 1 | . . . 1 . . . Parts Lost 27 | . . 2 . 2 10 13 Power 3 | . . 1 . 1 . 1 Propulsion 11 | . . . . . 5 6 Utility 7 | . . . . 1 3 3 Weapon 6 | . . 1 . . 2 3 Highest Loss Streak 8 | . . 1 . 1 7 8 To Critical Strikes . | . . . . . . . Average Backups 7 | 1 5 8 8 9 8 6 Power . | . . . 2 1 1 . Propulsion 1 | 1 1 2 . 1 2 1 Utility 2 | . . 2 3 2 3 2 Weapon 2 | . 2 2 3 3 1 . Tool/Special . | . . . . . . . Unused Backups 14 | . 2 1 1 4 . 6 Power 3 | . . . 1 1 . 1 Propulsion 4 | . 2 1 . . . 1 Utility 3 | . . . . 1 . 2 Weapon 4 | . . . . 2 . 2 Tool/Special . | . . . . . . . Average Slot Usage (%) 87 | . 90 98 99 97 97 61 Engine 9 | . 14 13 11 9 9 6 Treads 26 | . 12 28 43 44 34 5 Leg 2 | . 15 . . . . . Flight 3 | . . . . . . 12 Device 9 | . 14 14 11 10 9 4 Storage 9 | . 5 14 11 11 9 7 Hackware 1 | . . . . . . 5 Protection 3 | . . . . . 17 5 Energy Gun 4 | . 15 9 . . 3 3 Energy Cannon 2 | . . . . 7 3 . Ballistic Gun 1 | . . . . . 4 2 Ballistic Cannon 3 | . . . 3 11 5 . Launcher 1 | . . 6 7 1 . . Special Melee Weapon 4 | . 12 11 11 1 . . Peak Build Rating 36 | 6 9 10 16 16 23 36 Average Rating 14 | 4 7 9 13 14 21 20 On Entrance 9 | . 6 9 10 14 16 14 Naked Turns . | . . . . . . . Heaviest Build 40 | 7 16 18 22 27 40 36 Greatest Support 92 | 20 46 46 92 92 92 40 Greatest Overweight (x) 4 | . . . . . 1 4 Average Overweight (x) . | . . . . . . . Largest Inventory Capacity 10 | 5 10 10 10 10 10 10 Average Capacity 9 | 5 6 10 10 10 10 10 Most Carried 10 | 3 7 10 9 10 10 10 Average Carried 7 | 2 5 8 8 9 8 6 Final Capacity 10 | 5 10 10 10 10 10 10 Final Carried 10 | 3 7 10 8 10 5 9 Class Distribution -------------------- 69% | Mutant 14% | Scavenger-Mutant 5% | Hacker-Sprinter 4% | Hacker-Mutant 4% | Commander-Mutant Dominant Class ---------------- Mutant | -10/Materials Mutant | -10/Mines Mutant | -9/Materials Mutant | -9/Storage Mutant | -8/Materials Scavenger-Mutant | -7/Factory Resources | -11 -10 -10 -9 -9 -8 -7 ----------- Run | Yrd Mat Min Mat Sto Mat Fac Matter Collected 1212 | 250 7 175 . 322 72 386 Remotely . | . . . . . . . Salvage Created 1231 | 46 13 142 . 408 477 145 Parts 67 | 2 4 13 . 21 19 8 Haulers Intercepted 2 | . . . . 2 . . Recyclers Shooed 3 | . . 1 . . 1 1 Parts Field Recycled . | . . . . . . . Retrieved Matter . | . . . . . . . Parts Self-Destructed . | . . . . . . . Prevented . | . . . . . . . Kills | -11 -10 -10 -9 -9 -8 -7 ------- Run | Yrd Mat Min Mat Sto Mat Fac Combat Hostiles Destroyed 22 | 1 . 5 . 4 9 3 Melee 1 | . . . . . . 1 Guns 3 | 1 . 1 . . . 1 Cannons 4 | . . . . 4 . . AOE 13 | . . 4 . . 9 . Classes Destroyed 12 | 1 1 3 . 2 4 1 Worker 2 | . . 1 . . 1 . Builder 3 | . . 1 . 1 1 . Hauler 2 | . . . . 2 . . Recycler 5 | . . . . . 5 . Operator 1 | . 1 . . . . . Watcher 1 | . . . . . 1 . Swarmer 5 | . . 3 . . 2 . Grunt 11 | 1 . 2 . 3 5 . Brawler 1 | . . . . . 1 . Sentry 6 | . . . . 4 . 2 Hunter 1 | . . . . . 1 . Programmer 1 | . . . . . . 1 Best Kill Streak 8 | 1 1 5 . 2 8 1 Combat Bots Only 3 | 1 . 3 . 1 3 1 Max Kills in Single Turn 4 | 1 1 2 . 1 4 1 Gunslinging . | . . . . . . . Exploded 3 | . . 2 . . 3 . Melee 1 | . . . . . . 1 Uniques/NPCs Destroyed . | . . . . . . . Combat | -11 -10 -10 -9 -9 -8 -7 -------- Run | Yrd Mat Min Mat Sto Mat Fac Hostile Shots Fired 379 | 5 1 24 . 33 140 176 Missed 118 | 3 . 9 . 13 38 55 Hits 261 | 2 1 15 . 20 102 121 Projectile 261 | 2 1 15 . 20 102 121 Critical Strikes 10 | . . . . . 7 3 Damage Taken 3823 | 22 37 230 39 401 1539 1555 Core 802 | 11 . 35 . 111 113 532 Absorbed by Shields . | . . . . . . . Core Remaining (%) 81 | 95 . 81 . 72 79 . Volleys Fired 68 | 3 1 9 . 19 21 15 Largest 2 | 2 2 2 . 2 2 1 Hottest 98 | 80 80 80 . 98 88 65 Shots Fired 104 | 6 2 15 . 36 31 14 Gun 51 | 6 2 12 . . 19 12 Cannon 33 | . . . . 32 1 . Launcher 18 | . . 3 . 4 11 . Special 2 | . . . . . . 2 Kinetic 34 | . . . . 17 11 6 Thermal 40 | 3 1 6 . 15 9 6 Explosive 18 | . . 3 . 4 11 . Electromagnetic 10 | 3 1 6 . . . . Robot Hit Streak 12 | 1 2 4 . 4 7 12 Robot Miss Streak 2 | 2 1 1 . 2 1 1 Penetration Max . | . . . . . . . Secondary Targets . | . . . . . . . Shots Hit Robots 63 | 2 5 10 . 18 15 13 Core Hits 67 | 2 1 10 . 16 32 6 Critical Kills . | . . . . . . . Critical Parts Destroyed 1 | . . . . . . 1 Critical Strikes 2 | . . . . . . 2 Burn 1 | . . . . . . 1 Destroy 1 | . . . . . . 1 Melee Attacks 6 | . 4 1 . 1 . . Impact . | . . . . . . . Slashing . | . . . . . . . Piercing . | . . . . . . . Sneak Attacks 4 | . 4 . . . . . Combat Hostiles . | . . . . . . . Follow-up Attacks . | . . . . . . . Damage Inflicted 3075 | 36 49 461 . 446 1854 229 Guns 621 | 36 15 120 . . 230 220 Cannons 387 | . . . . 371 16 . Explosions 2051 | . 34 341 . 68 1608 . Melee . | . . . . . . . Ramming 16 | . . . . 7 . 9 Kinetic 436 | . . . . 185 135 116 Thermal 738 | 11 34 89 . 186 314 104 Explosive 1759 | . . 286 . 68 1405 . Electromagnetic 126 | 25 15 86 . . . . Impact . | . . . . . . . Slashing . | . . . . . . . Piercing . | . . . . . . . Highest Corruption 8 | . . . 3 3 . 8 Average Corruption 4 | . . . 3 3 . 6 Corruption Purged . | . . . . . . . Corruption Blocked . | . . . . . . . Effects 33 | . . . . 14 . 19 Message Errors 5 | . . . . 3 . 2 Matter Fused 11 | . . . . 5 . 6 Heat Flow Errors 2 | . . . . 1 . 1 Energy Discharges 3 | . . . . 1 . 2 Data Loss (minor) 7 | . . . . . . 7 Data Loss (major) 2 | . . . . 2 . . Misfires 2 | . . . . 2 . . Weapon Failures 1 | . . . . . . 1 Overload Shots . | . . . . . . . Overflow Damage 206 | . . 21 . . 185 . Projectiles . | . . . . . . . Explosions 206 | . . 21 . . 185 . Melee . | . . . . . . . Knockbacks 1 | . . . . . 1 . Impact . | . . . . . . . Kinetic 1 | . . . . . 1 . Secondary . | . . . . . . . Self-Inflicted Damage 174 | . 20 36 . 25 93 . Shots 5 | . 1 1 . 1 2 . Rammed 7 | . . . . 1 . 6 Targets Rammed 9 | . . . . 2 . 7 Kicked . | . . . . . . . Crushed 2 | . . . . 1 . 1 Highest Temperature 398 | 60 8 10 . 185 398 137 Average Temperature 83 | 32 6 5 . 24 156 26 Received Heat Transfer 1146 | 12 9 87 . 78 666 294 Effects 3 | . . . . . 3 . Shutdowns 1 | . . . . . 1 . Short Circuit 1 | . . . . . 1 . Damage (minor) 1 | . . . . . 1 . Siege Activations . | . . . . . . . Martial Activations . | . . . . . . . Shielding Activations . | . . . . . . . Robots Disrupted . | . . . . . . . Combat Hostiles . | . . . . . . . Robots Corrupted . | . . . . . . . Combat Hostiles . | . . . . . . . Parts Fried . | . . . . . . . Impact Corruptions . | . . . . . . . Robots Melted 1 | . . . . . . 1 Combat Hostiles 1 | . . . . . . 1 Parts Melted 2 | . . . . 1 . 1 Heat Transferred 1238 | 25 50 125 . 333 409 296 Parts Sabotaged . | . . . . . . . Parts Stolen . | . . . . . . . Parts Stripped . | . . . . . . . Power Chain Reactions 2 | . 1 1 . . . . Alert | -11 -10 -10 -9 -9 -8 -7 ------- Run | Yrd Mat Min Mat Sto Mat Fac Maximum Alert Level 1 | . . . . . 1 . Low Security (%) 98 | 100 100 100 100 100 90 100 Level 1 1 | . . . . . 9 . Level 2 . | . . . . . . . Level 3 . | . . . . . . . Level 4 . | . . . . . . . Level 5 . | . . . . . . . High Security . | . . . . . . . Max Security . | . . . . . . . Peak Influence 211 | 20 45 88 6 187 211 77 Initial 77 | . 6 . 6 . 51 77 Average 39 | 2 6 29 . 65 96 20 Influence Increases 1271 | 20 44 153 . 490 381 183 Destroy 0b10 Robot/C 600 | 20 . 100 . 240 180 60 Destroy 0b10 Robot/NC 70 | . 5 10 . 15 40 . Destroy Leader 166 | . . 20 . 84 32 30 Allied During Kill 64 | . . . . 64 . . Successful Hack 35 | . 5 . . 27 . 3 Disable Machine 120 | . 15 . . 30 75 . Destroy Structure 96 | . 4 23 . 15 54 . Partial Spotted 75 | . 15 . . . . 60 Lose Combat Pursuer 45 | . . . . 15 . 30 Influence Decreases 1271 | 10 54 135 18 367 333 354 Entered New Map 182 | . 4 . 12 . 72 94 Time Decay 811 | 10 50 125 6 283 141 196 Lost Part 184 | . . 10 . 10 100 64 Lost Ally 94 | . . . . 74 20 . Squads Dispatched 8 | . . . . 1 1 6 Investigation 2 | . . . . 1 . 1 Extermination 2 | . . . . . . 2 Reinforcement 4 | . . . . . 1 3 Assault . | . . . . . . . Garrison . | . . . . . . . Intercept . | . . . . . . . Searches Triggered . | . . . . . . . Construction Impeded 1 | . . . . . 1 . Haulers Reinforced . | . . . . . . . Active Scanning Responses . | . . . . . . . Cargo Convoy Interrupts . | . . . . . . . Stealth | -11 -10 -10 -9 -9 -8 -7 --------- Run | Yrd Mat Min Mat Sto Mat Fac Distress Signals 10 | . 1 . . 6 2 1 Communications Jammed . | . . . . . . . Distress Signals . | . . . . . . . Times Spotted 59 | 1 4 5 . 11 20 18 Peak Tracking Total 5 | 1 3 3 . 4 5 4 Tactical Retreats 3 | . . . . 1 . 2 Traps | -11 -10 -10 -9 -9 -8 -7 ------- Run | Yrd Mat Min Mat Sto Mat Fac Traps Triggered 5 | . . . 1 3 . 1 Indirectly . | . . . . . . . Trap Hack Attempts . | . . . . . . . Triggered . | . . . . . . . Disarmed . | . . . . . . . Reprogrammed . | . . . . . . . Reused . | . . . . . . . Traps Extracted . | . . . . . . . Installed . | . . . . . . . Triggered . | . . . . . . . Machines | -11 -10 -10 -9 -9 -8 -7 ---------- Run | Yrd Mat Min Mat Sto Mat Fac Machines Disabled 8 | . 1 . . 2 5 . Max in Single Turn 2 | . 1 . . 1 2 . Machines Repaired . | . . . . . . . Machines Dismantled . | . . . . . . . Machines Sabotaged . | . . . . . . . Overloaded Fab Kills . | . . . . . . . Hacking | -11 -10 -10 -9 -9 -8 -7 --------- Run | Yrd Mat Min Mat Sto Mat Fac Machines Accessed 16 | . 3 . 2 5 1 5 Terminals 9 | . 2 . 1 5 . 1 Fabricators 1 | . . . . . . 1 Repair Stations 1 | . . . 1 . . . Recycling Units 3 | . 1 . . . . 2 Scanalyzers 2 | . . . . . 1 1 Garrison Access . | . . . . . . . Total Hacks 45 | . 15 . 3 18 2 7 Successful 27 | . 9 . . 12 2 4 Failed 18 | . 6 . 3 6 . 3 Catastrophic 4 | . 1 . . 2 . 1 Database Lockouts . | . . . . . . . Manual . | . . . . . . . Terminals 34 | . 12 . 2 18 . 2 Fabricators 2 | . . . . . . 2 Repair Stations 1 | . . . 1 . . . Recycling Units 5 | . 3 . . . . 2 Scanalyzers 3 | . . . . . 2 1 Garrison Access . | . . . . . . . Terminal Hacks 21 | . 8 . . 12 . 1 Record 9 | . 4 . . 5 . . Part Schematic 2 | . . . . 2 . . Robot Analysis 1 | . . . . 1 . . Prototype ID Bank 1 | . . . . 1 . . Open DSF 1 | . . . . . . 1 Branch Access Points 1 | . . . . 1 . . Alert Level 1 | . . . . 1 . . Dispatch Records 1 | . 1 . . . . . Maintenance Status 1 | . 1 . . . . . Transport Status 1 | . 1 . . . . . Hauler Manifests 1 | . 1 . . . . . Zone Layout 1 | . . . . 1 . . Fabricator Hacks 2 | . . . . . . 2 Load Schematic 1 | . . . . . . 1 Build 1 | . . . . . . 1 Repair Station Hacks . | . . . . . . . Recycling Unit Hacks 2 | . 1 . . . . 1 Report Inventory 1 | . 1 . . . . . Retrieve Components 1 | . . . . . . 1 Scanalyzer 2 | . . . . . 2 . Insert Component 1 | . . . . . 1 . Analyze 1 | . . . . . 1 . Garrison Access Hacks . | . . . . . . . Unauthorized Hacks . | . . . . . . . Terminals . | . . . . . . . Fabricators . | . . . . . . . Repair Stations . | . . . . . . . Recycling Units . | . . . . . . . Scanalyzers . | . . . . . . . Garrison Access . | . . . . . . . Data Cores Recovered 1 | . 1 . . . . . Used . | . . . . . . . Hacking Detections 13 | . 3 . 2 5 . 3 Full Trace Events 1 | . . . . . . 1 Feedback Events . | . . . . . . . Feedback Blocked . | . . . . . . . Robot Schematics Acquired . | . . . . . . . Robots Built . | . . . . . . . Authchips . | . . . . . . . Time . | . . . . . . . Total Robot Build Rating . | . . . . . . . Part Schematics Acquired 3 | . . . . 2 1 . Parts Built . | . . . . . . . Authchips . | . . . . . . . Time 73 | . . . . . . 73 Total Part Build Rating . | . . . . . . . Parts Repaired . | . . . . . . . Time . | . . . . . . . Parts Recycled . | . . . . . . . Recycled Matter . | . . . . . . . Retrieved Matter . | . . . . . . . Retrieved Components . | . . . . . . . Parts Scanalyzed 1 | . . . . . 1 . Part Schematics Acquired 1 | . . . . . 1 . Parts Damaged . | . . . . . . . Bothacking | -11 -10 -10 -9 -9 -8 -7 ------------ Run | Yrd Mat Min Mat Sto Mat Fac Used RIF Installer . | . . . . . . . Robots Hacked 5 | . 3 1 . 1 . . Non-combat 4 | . 3 . . 1 . . Combat 1 | . . 1 . . . . Robot Hacks Applied 6 | . 4 1 . 1 . . parse_system 4 | . 2 1 . 1 . . no_distress 1 | . 1 . . . . . find_recycling 1 | . 1 . . . . . Relay Couplers Released . | . . . . . . . Fabnet Peak Effective % . | . . . . . . . Robots Rewired . | . . . . . . . Allies Hacked . | . . . . . . . Hacks Repelled . | . . . . . . . Allies | -11 -10 -10 -9 -9 -8 -7 -------- Run | Yrd Mat Min Mat Sto Mat Fac Total Allies 10 | . . . . 10 . . Largest Group 10 | . . . . 10 3 . Highest-Rated Group 88 | . . . . 88 32 . Highest-Rated Ally 16 | . . . . 16 16 . Total Orders . | . . . . . . . Ally Attacks 65 | . . . . 49 16 . Total Damage 501 | . . . . 362 139 . Kills 8 | . . . . 8 . . Allies Corrupted . | . . . . . . . Allies Melted . | . . . . . . . Intel | -11 -10 -10 -9 -9 -8 -7 ------- Run | Yrd Mat Min Mat Sto Mat Fac Active Infowar (turns) 1276 | . . 255 187 216 298 320 Optics 320 | . . . . . . 320 Sensors 658 | . . 255 187 216 . . Terrain 298 | . . . . . 298 . Robot Analysis Total 1 | . . . . 1 . . Derelict Logs Recovered . | . . . . . . . Drone Launches . | . . . . . . . Drone Recoveries . | . . . . . . . Exploration | -11 -10 -10 -9 -9 -8 -7 ------------- Run | Yrd Mat Min Mat Sto Mat Fac Turns Passed 2912 | 117 376 371 187 803 332 726 Spaces Moved 2147 | 87 252 202 111 434 151 910 Core 16 | 16 . . . . . . Treads 1181 | . 107 202 111 434 151 176 Legs 216 | 71 145 . . . . . Wheels . | . . . . . . . Hover . | . . . . . . . Flight 734 | . . . . . . 734 Fastest Speed 31 | 50 120 160 160 160 160 31 Average Speed 116 | 107 136 160 160 160 160 68 Slowest Speed 380 | 120 160 160 160 160 240 380 Overloaded Moves . | . . . . . . . Propulsion Burnouts . | . . . . . . . Robots Hopped 1 | . . . . . . 1 Potential Cave-ins . | . . . . . . . Cave-ins Triggered . | . . . . . . . Exploration Rate (%) 26 | 6 24 34 12 63 21 26 Regions Visited 6 Branch Regions 2 Pre-discovered Areas . | . . . . . . . Known Exits Taken . | . . . . . . . Unknown Exits Taken 6 | 1 1 1 1 1 1 . Scrap Searched 1 | . . 1 . . . . Spaces Dug . | . . . . . . . Terrain Destroyed 93 | . 3 25 . 13 52 . Melee . | . . . . . . . Projectile . | . . . . . . . AOE 93 | . 3 25 . 13 52 . Terrain Rammed . | . . . . . . . Walls Destroyed . | . . . . . . . Machines Disabled . | . . . . . . . Actions | -11 -10 -10 -9 -9 -8 -7 --------- Run | Yrd Mat Min Mat Sto Mat Fac Total 2438 | 102 279 233 119 507 208 990 Wait 76 | 3 4 8 . 25 17 19 Move 2139 | 86 251 201 110 433 150 908 Hop 1 | . . . . . . 1 Pick Up 46 | 4 9 6 1 10 4 12 Fast Attach 13 | 5 1 1 . . . 6 Attach 20 | 1 . 1 2 2 8 6 Detach 3 | . . . . . . 3 Swap 32 | . 4 4 4 6 7 7 Drop 22 | . 5 2 2 6 1 6 Fire 68 | 3 1 9 . 19 21 15 Melee 6 | . 4 1 . 1 . . Ram 1 | . . . . . . 1 Kick . | . . . . . . . Crush 8 | . . . . 2 . 6 Escape Stasis . | . . . . . . . Rewire 3 | . . . . 3 . . Trap . | . . . . . . . Miscellaneous . | . . . . . . . Route ------- -11/Scrapyard -10/Materials (discovered 2 exits: *Mat / [*Min]) -10/Mines -9/Materials -9/Storage (discovered 2 exits: *Mat / Rec) -8/Materials -7/Factory (discovered 1 exit: [*Fac]) History --------- Turn | Location | Event 2 | -11/Scrapyard | Met Revision 17 82 | -11/Scrapyard | Discovered new exit (range 8) 118 | -11/Scrapyard | Entered Materials 269 | -10/Materials | Discovered new exit (range 8) 337 | -10/Materials | Build established: Mutant 340 | -10/Materials | Discovered new exit (range 6) 494 | -10/Materials | Entered Mines 788 | -10/Mines | Discovered new exit (range 14) 865 | -10/Mines | Entered Materials 865 | -9/Materials | Evolved 2 slots: Propulsion x2 867 | -9/Materials | Discovered new exit (range 8) 1052 | -9/Materials | Entered Storage 1301 | -9/Storage | Identified exit to Recycling 1498 | -9/Storage | Assisted by bots powering up and referring to "LRC-V3" 1584 | -9/Storage | Lost 5 allies 1822 | -9/Storage | Discovered new exit (range 15) 1855 | -9/Storage | Entered Materials 1855 | -8/Materials | Accompanied by 3 allies 1855 | -8/Materials | Evolved 2 slots: Utility x2 2033 | -8/Materials | Lost 3 allies 2133 | -8/Materials | Discovered new exit (range 16) 2187 | -8/Materials | Entered Factory 2187 | -7/Factory | Evolved 2 slots: Weapon x2 2217 | -7/Factory | Lost 7 parts (4n2u1w) 2381 | -7/Factory | Lost 4 parts (1n1u2w) 2856 | -7/Factory | Discovered new exit (range 18) 2908 | -7/Factory | Core integrity fell below 50% 2913 | -7/Factory | Self-destructed Last Messages --------------- 02860_ Penetrated by Slug. 02871_ System corrupted: Component data lost. 02883_ Penetrated by Slug. 02887_ Critical hit (Burn: +37). 02888_ Xenon Bombardment Thruster destroyed. 02891_ Penetrated by Slug. 02892_ System Shield destroyed. 02895_ System corrupted: Matter fused (-7). 02897_ Xenon Bombardment Thruster destroyed. 02897_ Gauss Rifle destroyed. 02900_ Penetrated by Slug. 02901_ Imp. Deuterium Engine destroyed. 02901_ Penetrated by Slug. 02901_ Cesium-ion Thruster destroyed. 02901_ Slammed into G-47 Trooper. 02901_ Destabilizing: System corrupted (+1). 02903_ Slug penetrates H-55 Commando. 02904_ Penetrated by Slug. 02907_ Slug penetrates G-47 Trooper. 02909_ Penetrated by Slug. Map ----- +----------------------------------------------------+ | | | | | | | | | | | | | | | | | | | | | ????????????????????????????????????????????????? | | ????##########??????????????????????????????????? | | ????# #??????????????????????????????????? | | ????# """ #??????????????????????????????????? | | ????# "Y" #??????????????????????????????????? | | ##### " " #??????????????????????????????????? | | # + | ##############?????????????????????? | | # # #?????????????????????? | | # + # #?????????????????????? | | # ########## """" #???##????????????????? | | # ## ![## """" #?? ????????????????? | | #=! ## """" [#??""" ???????????????? | | #% ## !! """" #?"""" ???????????????? | | + """ ## !! #?"""" ??????????????? | | #= """ ## """"gg# """" ?????????????? | | # """ ## """"h@# """" #????????????? | | ############## """"h + """" #????????????? | | #????????????# """" # """" #????????????? | | ##???????????# # ?????????????? | | #??????################+######+#######?????????? | | ##??????# # ??????? | | #??????# ! """" # ??????? | | ##??????# """" # < ??????? | | "######## """" # ??????? | | ## " F" """" # ???????? | | ## """" # #####+#########???????? | | ##########+### #?????????????????????? | | ! #?????# #?????????????????????? | | #?????# #?????????????????????? | | #?????# #?????????????????????? | | = #?????# #?????????????????????? | | #?????# #?????????????????????? | | ! #?????# #?????????????????????? | | ###+########## #?????????????????????? | | #?????????????????????? | | ##########????????????? | | # ? ???????????? | | """"""" !!]# = """ """??????????? | | !! """"""" !!]# """ """??????????? | | #### !! """"""" !! # """ """ ?????????? | +----------------------------------------------------+ Best States ------------- Heat Dissipation 44 Energy Generation 16 Energy Capacity 290 Matter Stores 300 Matter Capacity 400 Sight Range 18 Robot Scan Range 14 Terrain Scan Range 16 Terrain Scan Density 10 Armor Coverage 450 Evasion (%) 63 Recoil Reduction 4 Offensive Hacking 10 Defensive Hacking 10 Item Schematics ----------------- Arm. Huge Wheel | -9/Storage | Hacked Hacking Suite | -9/Storage | Hacked Imp. Ion Engine | -8/Materials | Scanalyzed Robot Schematics ------------------ None Fabricated ------------ Nothing Repaired ---------- Nothing Alien Tech Used ----------------- None Achievements -------------- Safety First Shopping List Challenges ------------ None Game ------ Seed ControlTerrorSaw Manual? 0 Play Time 00:47:50 Cumulative 0.7 hours Start 2025.05.18 @ 18:46:17 End 2025.05.18 @ 19:35:58 Sessions 1 Manual Loads 0 Difficulty Rogue Special Mode None Game No. 1 Rogue 1 Adventurer 0 Explorer 0 Win Type - Total 0 Types 0/0/0/0/0/0/0/0/0/0 Lore% 0 Gallery% 3 Achievement% 16 Wizard Run 0 Options --------- Layout 1 ASCII 0 Keyboard 1 Movement Numpad Keybinds 0 Fullscreen 2 Font 24/Smallcaps Map View 50x35 Zoom Use 0% Tactical HUD 1 Map Filters NONE Filters NONE Steam 1 RUN: 0aa4919e-cdc8-42bb-9439-4dd9ee9a308b